[Event "44th Chess Olympiad Open 2022"]
[Site "Chennai"]
[Date "2022.08.08"]
[Round "10.44"]
[White "Koniahli, Malek."]
[Black "Makolli, Perparim"]
[Result "0-1"]
[WhiteElo "2238"]
[BlackElo "2247"]
[Annotator "NA RC"]
[PlyCount "54"]
[EventDate "2022.??.??"]
[TimeControl "60"]

1. e4 {[%emt 0:00:04]} c5 {[%emt 0:00:31]} 2. Nf3 {[%emt 0:00:05]} e6 {[%emt 0:
00:00]} 3. d4 {[%emt 0:00:05]} cxd4 {[%emt 0:00:22]} 4. Nxd4 {[%emt 0:00:03]}
a6 {[%emt 0:01:56]} 5. Bd3 {[%emt 0:01:09]} Nf6 {[%emt 0:00:26]} 6. O-O {
[%emt 0:00:23]} Qc7 {[%emt 0:00:24]} 7. Be3 {[%emt 0:02:46]} Nc6 {[%emt 0:00:
00]} 8. Nd2 {[%emt 0:12:37]} Be7 {[%emt 0:08:27]} 9. Nxc6 {[%emt 0:02:39]} bxc6
{[%emt 0:01:18]} 10. f4 {[%emt 0:04:31]} d6 {[%emt 0:02:23]} 11. Nc4 {[%emt 0:
00:00]} Nd7 {[%emt 0:08:46]} 12. Qg4 {[%emt 0:17:20]} d5 {[%emt 0:03:21]} 13.
exd5 {[%emt 0:12:04]} exd5 {[%emt 0:05:27]} 14. Qxg7 {[%emt 0:01:30]} Bf6 {
[%emt 0:03:56]} 15. Qh6 {[%emt 0:00:05]} dxc4 {[%emt 0:01:19]} 16. Bxc4 {
[%emt 0:00:30]} Bb7 {[%emt 0:22:39]} 17. Rad1 {[%emt 0:05:54]} Be7 {[%emt 0:00:
00]} 18. Bxf7+ {[%emt 0:33:37]} Kxf7 {[%emt 0:00:13]} 19. Qh5+ {[%emt 0:00:03]}
Kf8 {[%emt 0:00:39]} 20. f5 {[%emt 0:00:03]} Bf6 {[%emt 0:05:05]} 21. Bh6+ {
[%emt 0:02:52]} Ke7 {[%emt 0:00:20]} 22. Rfe1+ {[%emt 0:00:20]} Kd8 {[%emt 0:
00:00]} 23. Qf7 {[%emt 0:01:07]} Kc8 {[%emt 0:01:51]} 24. Rd3 {[%emt 0:00:02]}
c5 {[%emt 0:00:49]} 25. Re6 {[%emt 0:01:01]} Bd4+ {[%emt 0:00:30]} 26. Kh1 {
[%emt 0:00:30]} Ne5 {[%emt 0:03:15]} 27. Qf6 {[%emt 0:00:30]} Nxd3 {[%emt 0:00:
00]} 0-1

[Event "44th Chess Olympiad Open 2022"]
[Site "Chennai"]
[Date "2022.08.08"]
[Round "10.44"]
[White "Asllani, Muhamet"]
[Black "Eiti, Bashir"]
[Result "0-1"]
[WhiteElo "2235"]
[BlackElo "2337"]
[Annotator "RC"]
[PlyCount "74"]
[EventDate "2022.??.??"]
[TimeControl "60"]

1. d4 {[%emt 0:00:14]} Nf6 {[%emt 0:00:55]} 2. Nf3 {[%emt 0:00:09]} b5 {
[%emt 0:08:46]} 3. Bg5 {[%emt 0:00:22]} Bb7 {[%emt 0:00:52]} 4. e3 {[%emt 0:00:
00]} a6 {[%emt 0:01:08]} 5. Nbd2 {[%emt 0:00:08]} g6 {[%emt 0:01:38]} 6. c4 {
[%emt 0:00:11]} bxc4 {[%emt 0:00:55]} 7. Bxc4 {[%emt 0:00:07]} d5 {[%emt 0:00:
00]} 8. Bd3 {[%emt 0:00:48]} Nbd7 {[%emt 0:01:51]} 9. O-O {[%emt 0:01:20]} Bg7
{[%emt 0:01:56]} 10. Rc1 {[%emt 0:00:25]} O-O {[%emt 0:01:15]} 11. Nb3 {
[%emt 0:00:06]} a5 {[%emt 0:02:50]} 12. Bf4 {[%emt 0:00:46]} c6 {[%emt 0:02:09]
} 13. Ne5 {[%emt 0:01:10]} a4 {[%emt 0:03:53]} 14. Nc5 {[%emt 0:00:15]} Nxc5 {
[%emt 0:00:14]} 15. Rxc5 {[%emt 0:00:07]} Nh5 {[%emt 0:06:24]} 16. Nxc6 {
[%emt 0:05:13]} Bxc6 {[%emt 0:00:34]} 17. Rxc6 {[%emt 0:00:08]} Nxf4 {[%emt 0:
00:00]} 18. exf4 {[%emt 0:00:05]} e6 {[%emt 0:03:45]} 19. b4 {[%emt 0:01:22]}
axb3 {[%emt 0:01:46]} 20. axb3 {[%emt 0:00:19]} Qb8 {[%emt 0:03:50]} 21. g3 {
[%emt 0:00:40]} Qb4 {[%emt 0:00:52]} 22. Qc2 {[%emt 0:01:18]} Bxd4 {[%emt 0:00:
00]} 23. h4 {[%emt 0:00:14]} Rab8 {[%emt 0:02:41]} 24. h5 {[%emt 0:01:26]} Qxb3
{[%emt 0:01:17]} 25. hxg6 {[%emt 0:00:31]} hxg6 {[%emt 0:00:10]} 26. Qe2 {
[%emt 0:00:53]} Kg7 {[%emt 0:12:04]} 27. Kg2 {[%emt 0:00:16]} Rbc8 {[%emt 0:00:
00]} 28. Ra6 {[%emt 0:01:41]} Ra8 {[%emt 0:03:22]} 29. Rb1 {[%emt 0:02:16]} Qc3
{[%emt 0:04:28]} 30. Rxe6 {[%emt 0:05:50]} fxe6 {[%emt 0:07:07]} 31. Qxe6 {
[%emt 0:00:16]} Rf7 {[%emt 0:01:11]} 32. Bxg6 {[%emt 0:06:09]} Rc7 {[%emt 0:00:
00]} 33. Rh1 {[%emt 0:00:42]} Rh8 {[%emt 0:00:57]} 34. Bh5 {[%emt 0:02:42]} Qc2
{[%emt 0:04:48]} 35. Qg4+ {[%emt 0:02:11]} Kf8 {[%emt 0:00:06]} 36. Rd1 {
[%emt 0:03:11]} Qe4+ {[%emt 0:02:24]} 37. Kh3 {[%emt 0:05:31]} Rxh5+ {[%emt 0:
00:00]} 0-1

[Event "44th Chess Olympiad Open 2022"]
[Site "Chennai"]
[Date "2022.08.08"]
[Round "10.45"]
[White "Palomo, Franklin Annervys"]
[Black "Smith, Shreyas"]
[Result "0-1"]
[WhiteElo "2324"]
[BlackElo "2147"]
[Annotator "RC"]
[PlyCount "140"]
[EventDate "2022.??.??"]
[TimeControl "60"]

1. e4 {[%emt 0:00:12]} c5 {[%emt 0:00:07]} 2. Nf3 {[%emt 0:00:09]} Nc6 {
[%emt 0:00:06]} 3. d4 {[%emt 0:00:17]} cxd4 {[%emt 0:00:05]} 4. Nxd4 {[%emt 0:
00:00]} e5 {[%emt 0:00:05]} 5. Nb5 {[%emt 0:01:19]} d6 {[%emt 0:00:03]} 6. c4 {
[%emt 0:00:40]} Be7 {[%emt 0:00:07]} 7. Bd3 {[%emt 0:01:45]} Nf6 {[%emt 0:00:
00]} 8. O-O {[%emt 0:01:17]} O-O {[%emt 0:00:10]} 9. h3 {[%emt 0:00:47]} Be6 {
[%emt 0:01:52]} 10. Be3 {[%emt 0:01:02]} a6 {[%emt 0:04:38]} 11. N5c3 {[%emt 0:
00:00]} Nd7 {[%emt 0:00:17]} 12. Nd5 {[%emt 0:08:13]} Bg5 {[%emt 0:03:39]} 13.
Nbc3 {[%emt 0:10:01]} Bxe3 {[%emt 0:04:38]} 14. Nxe3 {[%emt 0:04:49]} Qg5 {
[%emt 0:02:54]} 15. Kh1 {[%emt 0:05:02]} Nf6 {[%emt 0:01:39]} 16. Be2 {[%emt 0:
00:00]} Qh4 {[%emt 0:07:36]} 17. Qd3 {[%emt 0:13:49]} Nd4 {[%emt 0:03:29]} 18.
Rac1 {[%emt 0:08:00]} b5 {[%emt 0:07:37]} 19. cxb5 {[%emt 0:07:37]} axb5 {
[%emt 0:00:03]} 20. a3 {[%emt 0:00:08]} g5 {[%emt 0:00:32]} 21. Kg1 {[%emt 0:
00:00]} h5 {[%emt 0:13:27]} 22. Rfe1 {[%emt 0:17:18]} g4 {[%emt 0:01:32]} 23.
Ncd5 {[%emt 0:00:26]} Nxd5 {[%emt 0:02:57]} 24. exd5 {[%emt 0:01:46]} Bc8 {
[%emt 0:00:18]} 25. hxg4 {[%emt 0:07:26]} hxg4 {[%emt 0:00:24]} 26. g3 {
[%emt 0:00:42]} Qh3 {[%emt 0:02:24]} 27. Ng2 {[%emt 0:01:22]} Qh5 {[%emt 0:00:
00]} 28. Nh4 {[%emt 0:00:31]} Bb7 {[%emt 0:02:19]} 29. Bf1 {[%emt 0:00:44]}
Rac8 {[%emt 0:09:14]} 30. Bg2 {[%emt 0:00:23]} Qg5 {[%emt 0:01:09]} 31. Rc3 {
[%emt 0:00:56]} f5 {[%emt 0:00:19]} 32. Kh2 {[%emt 0:00:51]} Kg7 {[%emt 0:00:
00]} 33. Rec1 {[%emt 0:00:26]} Rxc3 {[%emt 0:02:39]} 34. Rxc3 {[%emt 0:00:02]}
Rf7 {[%emt 0:00:10]} 35. Qd1 {[%emt 0:00:46]} f4 {[%emt 0:00:53]} 36. Be4 {
[%emt 0:00:39]} fxg3+ {[%emt 0:04:47]} 37. fxg3 {[%emt 0:00:02]} Rf2+ {[%emt 0:
00:00]} 38. Kg1 {[%emt 0:00:48]} Rf7 {[%emt 0:02:50]} 39. Kh2 {[%emt 0:00:13]}
Kh6 {[%emt 0:05:39]} 40. Kg2 {[%emt 0:00:11]} b4 {[%emt 0:01:40]} 41. axb4 {
[%emt 0:30:38]} Ba6 {[%emt 0:30:05]} 42. Qc1 {[%emt 0:00:20]} Bf1+ {[%emt 0:00:
00]} 43. Kh2 {[%emt 0:00:55]} Rf2+ {[%emt 0:00:12]} 44. Kh1 {[%emt 0:00:57]}
Qxc1 {[%emt 0:01:20]} 45. Rxc1 {[%emt 0:00:01]} Ne2 {[%emt 0:00:20]} 46. Nf5+ {
[%emt 0:01:04]} Kg5 {[%emt 0:00:09]} 47. Re1 {[%emt 0:00:27]} Bg2+ {[%emt 0:00:
00]} 48. Bxg2 {[%emt 0:00:00]} Kxf5 {[%emt 0:00:00]} 49. b5 {[%emt 0:00:00]}
Nxg3+ {[%emt 0:00:00]} 50. Kh2 {[%emt 0:00:00]} Kf4 {[%emt 0:00:00]} 51. Rb1 {
[%emt 0:00:00]} Ne4 {[%emt 0:00:00]} 52. Rf1 {[%emt 0:00:00]} Rxf1 {[%emt 0:00:
00]} 53. Bxf1 {[%emt 0:00:00]} Nc5 {[%emt 0:00:00]} 54. Bc4 {[%emt 0:00:00]}
Nd7 {[%emt 0:00:00]} 55. Kg2 {[%emt 0:00:00]} Nb6 {[%emt 0:00:00]} 56. b3 {
[%emt 0:00:00]} g3 {[%emt 0:00:00]} 57. Kf1 {[%emt 0:00:00]} Kf3 {[%emt 0:00:
00]} 58. Be2+ {[%emt 0:00:00]} Ke3 {[%emt 0:00:00]} 59. Bc4 {[%emt 0:00:00]} e4
{[%emt 0:00:00]} 60. Kg2 {[%emt 0:00:00]} Kf4 {[%emt 0:00:00]} 61. Be2 {
[%emt 0:02:07]} Nxd5 {[%emt 0:00:00]} 62. Bh5 {[%emt 0:00:23]} Nb6 {[%emt 0:00:
00]} 63. Bf7 {[%emt 0:00:37]} d5 {[%emt 0:00:12]} 64. b4 {[%emt 0:02:26]} d4 {
[%emt 0:00:25]} 65. Kf1 {[%emt 0:00:25]} d3 {[%emt 0:03:10]} 66. Bg6 {[%emt 0:
00:00]} Nc4 {[%emt 0:01:13]} 67. Kg2 {[%emt 0:00:55]} d2 {[%emt 0:00:35]} 68.
Bh5 {[%emt 0:00:15]} Ne3+ {[%emt 0:00:43]} 69. Kh3 {[%emt 0:00:22]} g2 {
[%emt 0:00:13]} 70. Kh2 {[%emt 0:00:15]} Ng4+ {[%emt 0:00:09]} 0-1

[Event "44th Chess Olympiad Open 2022"]
[Site "Chennai"]
[Date "2022.08.08"]
[Round "10.45"]
[White "Christie, Joshua"]
[Black "Rohl Montes, Juan Armando"]
[Result "1/2-1/2"]
[WhiteElo "2272"]
[BlackElo "2382"]
[Annotator "RC"]
[PlyCount "23"]
[EventDate "2022.??.??"]
[TimeControl "60"]

1. d4 {[%emt 0:00:09]} Nf6 {[%emt 0:01:10]} 2. c4 {[%emt 0:00:29]} g6 {[%emt 0:
00:00]} 3. g3 {[%emt 0:01:09]} c6 {[%emt 0:02:18]} 4. Bg2 {[%emt 0:00:49]} d5 {
[%emt 0:00:56]} 5. cxd5 {[%emt 0:00:43]} cxd5 {[%emt 0:00:22]} 6. Nf3 {[%emt 0:
00:00]} Bg7 {[%emt 0:01:09]} 7. O-O {[%emt 0:00:50]} O-O {[%emt 0:00:56]} 8.
Ne5 {[%emt 0:01:22]} Ng4 {[%emt 0:01:15]} 9. Nf3 {[%emt 0:02:34]} Nf6 {[%emt 0:
00:00]} 10. Ne5 {[%emt 0:00:30]} Ng4 {[%emt 0:00:21]} 11. Nf3 {[%emt 0:00:21]}
Nf6 {[%emt 0:00:07]} 12. Ne5 {[%emt 0:03:47]} 1/2-1/2

[Event "44th Chess Olympiad Open 2022"]
[Site "Chennai"]
[Date "2022.08.08"]
[Round "10.45"]
[White "Castro Silva, Moises Antonio"]
[Black "McDonald, Jhustice-Dimonte"]
[Result "1-0"]
[WhiteElo "2237"]
[BlackElo "1884"]
[Annotator "NA RC"]
[PlyCount "65"]
[EventDate "2022.??.??"]
[TimeControl "60"]

1. e4 {[%emt 0:00:05]} c5 {[%emt 0:00:05]} 2. Nf3 {[%emt 0:00:07]} e6 {[%emt 0:
00:00]} 3. Nc3 {[%emt 0:00:21]} Nc6 {[%emt 0:00:13]} 4. d4 {[%emt 0:00:12]}
cxd4 {[%emt 0:00:06]} 5. Nxd4 {[%emt 0:00:05]} Nf6 {[%emt 0:00:29]} 6. Ndb5 {
[%emt 0:00:08]} d6 {[%emt 0:00:19]} 7. Bf4 {[%emt 0:00:05]} e5 {[%emt 0:00:18]}
8. Bg5 {[%emt 0:00:04]} a6 {[%emt 0:00:43]} 9. Na3 {[%emt 0:00:06]} b5 {
[%emt 0:00:26]} 10. Bxf6 {[%emt 0:00:25]} Qxf6 {[%emt 0:05:05]} 11. Nd5 {
[%emt 0:00:13]} Qd8 {[%emt 0:00:23]} 12. Bxb5 {[%emt 0:00:24]} axb5 {[%emt 0:
00:00]} 13. Nxb5 {[%emt 0:00:10]} Qa5+ {[%emt 0:17:17]} 14. c3 {[%emt 0:00:29]}
Kd8 {[%emt 0:02:11]} 15. a4 {[%emt 0:05:07]} Rb8 {[%emt 0:08:21]} 16. b4 {
[%emt 0:11:04]} Qa8 {[%emt 0:19:29]} 17. O-O {[%emt 0:06:07]} Be6 {[%emt 0:00:
00]} 18. Ndc7 {[%emt 0:02:43]} Qb7 {[%emt 0:00:09]} 19. Nxe6+ {[%emt 0:00:05]}
fxe6 {[%emt 0:00:21]} 20. Nxd6 {[%emt 0:00:07]} Bxd6 {[%emt 0:00:34]} 21. Qxd6+
{[%emt 0:00:09]} Qd7 {[%emt 0:02:57]} 22. Qc5 {[%emt 0:00:08]} Qc7 {[%emt 0:00:
00]} 23. Rfd1+ {[%emt 0:09:51]} Kc8 {[%emt 0:00:14]} 24. Rd6 {[%emt 0:00:29]}
Nd8 {[%emt 0:00:29]} 25. Qxc7+ {[%emt 0:09:06]} Kxc7 {[%emt 0:00:03]} 26. Rad1
{[%emt 0:00:07]} Rg8 {[%emt 0:02:03]} 27. a5 {[%emt 0:02:46]} Nb7 {[%emt 0:00:
00]} 28. Rd7+ {[%emt 0:12:12]} Kc6 {[%emt 0:00:27]} 29. a6 {[%emt 0:01:56]}
Rgd8 {[%emt 0:00:53]} 30. b5+ {[%emt 0:00:10]} Kxb5 {[%emt 0:01:15]} 31. axb7 {
[%emt 0:00:07]} Rxd7 {[%emt 0:00:30]} 32. Rxd7 {[%emt 0:03:41]} Rg8 {[%emt 0:
00:00]} 33. Rxg7 {[%emt 0:00:27]} 1-0

[Event "44th Chess Olympiad Open 2022"]
[Site "Chennai"]
[Date "2022.08.08"]
[Round "10.45"]
[White "Shaw, Jaden"]
[Black "Castro Torres, Jose Luis"]
[Result "0-1"]
[WhiteElo "1930"]
[BlackElo "2326"]
[Annotator "RC"]
[PlyCount "72"]
[EventDate "2022.??.??"]
[TimeControl "60"]

1. e4 {[%emt 0:00:33]} c5 {[%emt 0:00:28]} 2. Nf3 {[%emt 0:00:00]} Nc6 {
[%emt 0:00:02]} 3. Bb5 {[%emt 0:00:50]} e6 {[%emt 0:00:01]} 4. Bxc6 {[%emt 0:
00:00]} bxc6 {[%emt 0:00:02]} 5. d3 {[%emt 0:00:32]} Ne7 {[%emt 0:00:03]} 6.
Qe2 {[%emt 0:00:26]} Ng6 {[%emt 0:00:29]} 7. h4 {[%emt 0:00:48]} h5 {[%emt 0:
00:00]} 8. e5 {[%emt 0:00:59]} Be7 {[%emt 0:05:04]} 9. Nc3 {[%emt 0:05:01]} Qc7
{[%emt 0:03:57]} 10. Bg5 {[%emt 0:06:02]} f6 {[%emt 0:05:30]} 11. exf6 {
[%emt 0:02:22]} gxf6 {[%emt 0:00:03]} 12. Bd2 {[%emt 0:00:57]} d5 {[%emt 0:00:
00]} 13. O-O-O {[%emt 0:10:53]} e5 {[%emt 0:12:24]} 14. Nh2 {[%emt 0:01:39]}
Be6 {[%emt 0:04:19]} 15. f4 {[%emt 0:08:54]} O-O-O {[%emt 0:18:07]} 16. Qf2 {
[%emt 0:18:25]} Nxf4 {[%emt 0:18:06]} 17. Bxf4 {[%emt 0:03:21]} exf4 {[%emt 0:
00:00]} 18. Na4 {[%emt 0:00:21]} d4 {[%emt 0:01:05]} 19. Rhe1 {[%emt 0:01:49]}
Bd5 {[%emt 0:02:51]} 20. c4 {[%emt 0:01:36]} Bf7 {[%emt 0:00:01]} 21. Qf3 {
[%emt 0:04:00]} Bd6 {[%emt 0:00:13]} 22. Qh3+ {[%emt 0:00:40]} Qd7 {[%emt 0:00:
00]} 23. Qf3 {[%emt 0:01:58]} Rhg8 {[%emt 0:00:58]} 24. Nf1 {[%emt 0:00:47]}
Rg4 {[%emt 0:06:05]} 25. Nd2 {[%emt 0:01:41]} Rg3 {[%emt 0:01:04]} 26. Qf1 {
[%emt 0:01:10]} Bg6 {[%emt 0:02:40]} 27. Nb3 {[%emt 0:06:43]} Qf5 {[%emt 0:00:
00]} 28. Kb1 {[%emt 0:09:23]} Rxd3 {[%emt 0:03:25]} 29. Ka1 {[%emt 0:00:17]}
Rxd1+ {[%emt 0:02:48]} 30. Rxd1 {[%emt 0:00:03]} Re8 {[%emt 0:00:30]} 31. Nxd4
{[%emt 0:05:36]} cxd4 {[%emt 0:00:33]} 32. c5 {[%emt 0:00:01]} Bc7 {[%emt 0:00:
00]} 33. Qa6+ {[%emt 0:00:10]} Kb8 {[%emt 0:00:01]} 34. Qxc6 {[%emt 0:01:59]}
Qe4 {[%emt 0:00:07]} 35. Qxf6 {[%emt 0:04:03]} Qe1 {[%emt 0:02:01]} 36. Qxd4 {
[%emt 0:01:14]} Bc2 {[%emt 0:00:03]} 0-1

[Event "44th Chess Olympiad Open 2022"]
[Site "Chennai"]
[Date "2022.08.08"]
[Round "10.46"]
[White "Munoz Santana, Jose Lisandro"]
[Black "Rehan, Deng Cypriano"]
[Result "1/2-1/2"]
[WhiteElo "2423"]
[BlackElo "2105"]
[Annotator "RC"]
[PlyCount "87"]
[EventDate "2022.??.??"]
[TimeControl "60"]

1. e4 {[%emt 0:00:02]} c5 {[%emt 0:02:14]} 2. Nf3 {[%emt 0:00:08]} d6 {[%emt 0:
00:00]} 3. Bb5+ {[%emt 0:00:22]} Bd7 {[%emt 0:00:27]} 4. Bxd7+ {[%emt 0:00:05]}
Qxd7 {[%emt 0:00:12]} 5. O-O {[%emt 0:00:08]} e6 {[%emt 0:02:28]} 6. c4 {
[%emt 0:01:40]} Ne7 {[%emt 0:02:52]} 7. d4 {[%emt 0:00:15]} cxd4 {[%emt 0:00:
00]} 8. Nxd4 {[%emt 0:00:05]} Ng6 {[%emt 0:00:22]} 9. Nc3 {[%emt 0:01:03]} Be7
{[%emt 0:00:38]} 10. Be3 {[%emt 0:01:26]} O-O {[%emt 0:00:30]} 11. Qe2 {
[%emt 0:01:45]} Nc6 {[%emt 0:00:58]} 12. Rfd1 {[%emt 0:04:41]} Nxd4 {[%emt 0:
00:00]} 13. Bxd4 {[%emt 0:00:11]} Qc6 {[%emt 0:01:04]} 14. b3 {[%emt 0:01:00]}
a6 {[%emt 0:00:51]} 15. a4 {[%emt 0:01:15]} Rac8 {[%emt 0:00:59]} 16. Rd3 {
[%emt 0:07:01]} Rfd8 {[%emt 0:11:15]} 17. Rad1 {[%emt 0:01:27]} Bf8 {[%emt 0:
00:00]} 18. Qg4 {[%emt 0:02:23]} Qe8 {[%emt 0:03:00]} 19. Rh3 {[%emt 0:05:58]}
h6 {[%emt 0:06:50]} 20. Bb6 {[%emt 0:11:21]} Rd7 {[%emt 0:01:30]} 21. f4 {
[%emt 0:00:10]} Kh7 {[%emt 0:11:51]} 22. Be3 {[%emt 0:17:42]} d5 {[%emt 0:00:
00]} 23. exd5 {[%emt 0:03:22]} f5 {[%emt 0:00:27]} 24. Qh5 {[%emt 0:11:35]} Bb4
{[%emt 0:03:54]} 25. Na2 {[%emt 0:08:39]} Bd6 {[%emt 0:03:08]} 26. Qf3 {
[%emt 0:10:19]} exd5 {[%emt 0:01:44]} 27. Rxd5 {[%emt 0:00:36]} Bxf4 {[%emt 0:
00:00]} 28. Rxd7 {[%emt 0:04:04]} Bxe3+ {[%emt 0:00:16]} 29. Qxe3 {[%emt 0:00:
00]} Qxd7 {[%emt 0:00:12]} 30. Qd3 {[%emt 0:00:33]} Qe7 {[%emt 0:01:37]} 31.
Qe3 {[%emt 0:02:35]} Qa3 {[%emt 0:01:31]} 32. Nc1 {[%emt 0:00:08]} b5 {[%emt 0:
00:00]} 33. axb5 {[%emt 0:00:01]} axb5 {[%emt 0:00:24]} 34. Rf3 {[%emt 0:01:43]
} f4 {[%emt 0:01:25]} 35. Qc3 {[%emt 0:00:54]} bxc4 {[%emt 0:01:17]} 36. bxc4 {
[%emt 0:00:08]} Qc5+ {[%emt 0:00:13]} 37. Kf1 {[%emt 0:00:53]} Qxc4+ {[%emt 0:
00:00]} 38. Qxc4 {[%emt 0:00:01]} Rxc4 {[%emt 0:00:01]} 39. Ne2 {[%emt 0:00:16]
} h5 {[%emt 0:00:29]} 40. g3 {[%emt 0:03:47]} fxg3 {[%emt 0:01:24]} 41. hxg3 {
[%emt 0:30:01]} Kh6 {[%emt 0:30:51]} 42. Rf5 {[%emt 0:01:03]} h4 {[%emt 0:00:
00]} 43. gxh4 {[%emt 0:00:07]} Nxh4 {[%emt 0:00:19]} 44. Rf4 {[%emt 0:00:28]}
1/2-1/2

[Event "44th Chess Olympiad Open 2022"]
[Site "Chennai"]
[Date "2022.08.08"]
[Round "10.46"]
[White "Arvelo Leo, Gian Carlo"]
[Black "Gong Thon Gong"]
[Result "1/2-1/2"]
[WhiteElo "2176"]
[BlackElo "2176"]
[Annotator "NA RC"]
[PlyCount "117"]
[EventDate "2022.??.??"]
[TimeControl "60"]

1. d4 {[%emt 0:00:04]} Nf6 {[%emt 0:00:16]} 2. Nf3 {[%emt 0:00:12]} d5 {
[%emt 0:00:06]} 3. c4 {[%emt 0:00:12]} e6 {[%emt 0:00:21]} 4. g3 {[%emt 0:00:
00]} dxc4 {[%emt 0:00:05]} 5. Qa4+ {[%emt 0:01:28]} c6 {[%emt 0:01:17]} 6. Qxc4
{[%emt 0:00:07]} b5 {[%emt 0:00:05]} 7. Qc2 {[%emt 0:01:08]} Bb7 {[%emt 0:00:
00]} 8. Bg2 {[%emt 0:00:39]} Nbd7 {[%emt 0:00:12]} 9. Nc3 {[%emt 0:02:43]} a6 {
[%emt 0:00:28]} 10. a4 {[%emt 0:02:50]} b4 {[%emt 0:00:13]} 11. Ne4 {[%emt 0:
00:00]} Nxe4 {[%emt 0:00:47]} 12. Qxe4 {[%emt 0:00:06]} Nf6 {[%emt 0:00:04]}
13. Qc2 {[%emt 0:00:14]} c5 {[%emt 0:00:33]} 14. dxc5 {[%emt 0:02:17]} Rc8 {
[%emt 0:00:08]} 15. Be3 {[%emt 0:01:16]} Nd5 {[%emt 0:00:21]} 16. Bd4 {[%emt 0:
00:00]} Qa5 {[%emt 0:01:36]} 17. Rc1 {[%emt 0:09:11]} Bxc5 {[%emt 0:03:10]} 18.
Bxc5 {[%emt 0:02:01]} b3+ {[%emt 0:00:05]} 19. Qd2 {[%emt 0:00:55]} Rxc5 {
[%emt 0:00:04]} 20. Qxa5 {[%emt 0:13:20]} Rxa5 {[%emt 0:00:03]} 21. Rc4 {
[%emt 0:06:21]} O-O {[%emt 0:11:19]} 22. O-O {[%emt 0:10:19]} Rb8 {[%emt 0:00:
00]} 23. Rfc1 {[%emt 0:04:15]} h6 {[%emt 0:00:00]} 24. e4 {[%emt 0:04:11]} Nb6
{[%emt 0:00:00]} 25. Rb4 {[%emt 0:01:38]} Ba8 {[%emt 0:00:00]} 26. Rcc4 {
[%emt 0:11:33]} Kh7 {[%emt 0:00:00]} 27. Nd4 {[%emt 0:01:21]} Nxc4 {[%emt 0:00:
00]} 28. Rxb8 {[%emt 0:00:13]} Nd2 {[%emt 0:00:47]} 29. Nxb3 {[%emt 0:08:04]}
Nxb3 {[%emt 0:00:08]} 30. Rxb3 {[%emt 0:00:06]} Rxa4 {[%emt 0:00:25]} 31. f3 {
[%emt 0:00:49]} Bc6 {[%emt 0:00:12]} 32. Kf2 {[%emt 0:03:11]} Bb5 {[%emt 0:00:
00]} 33. Bf1 {[%emt 0:00:35]} Bxf1 {[%emt 0:00:10]} 34. Kxf1 {[%emt 0:00:03]}
Rc4 {[%emt 0:00:00]} 35. Rc3 {[%emt 0:02:39]} Rb4 {[%emt 0:00:00]} 36. b3 {
[%emt 0:00:18]} a5 {[%emt 0:00:06]} 37. Ke2 {[%emt 0:00:31]} a4 {[%emt 0:00:09]
} 38. bxa4 {[%emt 0:00:12]} Rxa4 {[%emt 0:00:12]} 39. Rc2 {[%emt 0:00:29]} Ra3
{[%emt 0:00:21]} 40. Rd2 {[%emt 0:00:09]} g5 {[%emt 0:00:55]} 41. Rd3 {[%emt 0:
00:00]} Ra1 {[%emt 0:31:09]} 42. Rd1 {[%emt 0:00:50]} Ra4 {[%emt 0:00:22]} 43.
Ke3 {[%emt 0:01:41]} Kg6 {[%emt 0:00:12]} 44. Rd2 {[%emt 0:00:55]} Ra1 {
[%emt 0:01:02]} 45. Kf2 {[%emt 0:00:30]} h5 {[%emt 0:00:12]} 46. Rb2 {[%emt 0:
00:00]} e5 {[%emt 0:00:25]} 47. Kg2 {[%emt 0:01:30]} Ra4 {[%emt 0:00:22]} 48.
Rc2 {[%emt 0:02:15]} g4 {[%emt 0:00:20]} 49. Re2 {[%emt 0:00:00]} Ra3 {[%emt 0:
00:00]} 50. fxg4 {[%emt 0:00:00]} hxg4 {[%emt 0:00:00]} 51. Kf2 {[%emt 0:00:00]
} Kg5 {[%emt 0:00:00]} 52. Kg2 {[%emt 0:00:00]} f6 {[%emt 0:00:00]} 53. Kf2 {
[%emt 0:00:00]} Ra6 {[%emt 0:00:00]} 54. Kg2 {[%emt 0:00:00]} Kg6 {[%emt 0:00:
00]} 55. Rf2 {[%emt 0:00:00]} Kf7 {[%emt 0:00:00]} 56. h3 {[%emt 0:00:00]}
gxh3+ {[%emt 0:00:00]} 57. Kxh3 {[%emt 0:00:00]} Kg6 {[%emt 0:00:00]} 58. Kg4 {
[%emt 0:00:00]} Ra4 {[%emt 0:00:00]} 59. Re2 {[%emt 0:00:00]} 1/2-1/2

[Event "44th Chess Olympiad Open 2022"]
[Site "Chennai"]
[Date "2022.08.08"]
[Round "10.46"]
[White "Ajak Mach Duany"]
[Black "Guzman, Christopher"]
[Result "1/2-1/2"]
[WhiteElo "2029"]
[BlackElo "2243"]
[Annotator "NA RC"]
[PlyCount "104"]
[EventDate "2022.??.??"]
[TimeControl "60"]

1. e4 {[%emt 0:00:16]} e5 {[%emt 0:01:08]} 2. Nf3 {[%emt 0:01:39]} Nc6 {
[%emt 0:00:01]} 3. Bb5 {[%emt 0:00:19]} a6 {[%emt 0:00:10]} 4. Ba4 {[%emt 0:00:
00]} b5 {[%emt 0:00:21]} 5. Bb3 {[%emt 0:00:11]} Na5 {[%emt 0:00:01]} 6. O-O {
[%emt 0:04:24]} Nxb3 {[%emt 0:00:06]} 7. axb3 {[%emt 0:00:10]} d6 {[%emt 0:00:
00]} 8. h3 {[%emt 0:00:10]} Nf6 {[%emt 0:00:11]} 9. d3 {[%emt 0:01:05]} Be7 {
[%emt 0:00:19]} 10. Nh2 {[%emt 0:02:03]} O-O {[%emt 0:05:41]} 11. f4 {[%emt 0:
00:00]} exf4 {[%emt 0:00:09]} 12. Bxf4 {[%emt 0:00:11]} Nd7 {[%emt 0:06:33]}
13. Nc3 {[%emt 0:01:22]} c6 {[%emt 0:00:16]} 14. Qh5 {[%emt 0:01:28]} Ne5 {
[%emt 0:02:21]} 15. d4 {[%emt 0:05:46]} Ng6 {[%emt 0:00:44]} 16. Be3 {[%emt 0:
00:00]} Bf6 {[%emt 0:03:03]} 17. Nf3 {[%emt 0:01:15]} Re8 {[%emt 0:00:44]} 18.
Bg5 {[%emt 0:06:16]} h6 {[%emt 0:02:03]} 19. Bxf6 {[%emt 0:02:06]} Qxf6 {
[%emt 0:00:01]} 20. Ne5 {[%emt 0:02:52]} Nf4 {[%emt 0:02:14]} 21. Qxf7+ {
[%emt 0:00:15]} Qxf7 {[%emt 0:00:08]} 22. Nxf7 {[%emt 0:00:08]} Kxf7 {[%emt 0:
00:00]} 23. Rxf4+ {[%emt 0:00:07]} Kg8 {[%emt 0:00:05]} 24. Re1 {[%emt 0:00:23]
} Ra7 {[%emt 0:00:15]} 25. Nd1 {[%emt 0:00:49]} c5 {[%emt 0:00:43]} 26. dxc5 {
[%emt 0:05:27]} dxc5 {[%emt 0:00:01]} 27. Nc3 {[%emt 0:02:20]} Rae7 {[%emt 0:
00:00]} 28. Rf2 {[%emt 0:14:47]} Re5 {[%emt 0:02:14]} 29. Rd2 {[%emt 0:03:27]}
Bb7 {[%emt 0:00:19]} 30. Rd7 {[%emt 0:07:07]} Ba8 {[%emt 0:00:36]} 31. Rf1 {
[%emt 0:03:29]} Rg5 {[%emt 0:21:21]} 32. Rf5 {[%emt 0:05:45]} Bxe4 {[%emt 0:00:
00]} 33. Rxg5 {[%emt 0:00:19]} hxg5 {[%emt 0:00:01]} 34. Nxe4 {[%emt 0:00:23]}
Rxe4 {[%emt 0:00:02]} 35. Kf2 {[%emt 0:02:30]} g4 {[%emt 0:02:51]} 36. hxg4 {
[%emt 0:00:37]} Rxg4 {[%emt 0:00:02]} 37. Rd5 {[%emt 0:00:34]} c4 {[%emt 0:00:
00]} 38. Kf3 {[%emt 0:00:17]} Rh4 {[%emt 0:00:03]} 39. b4 {[%emt 0:01:47]} Rh1
{[%emt 0:00:10]} 40. Rd2 {[%emt 0:00:59]} Kf7 {[%emt 0:02:28]} 41. Ke4 {
[%emt 0:31:08]} Ke6 {[%emt 0:30:15]} 42. Kd4 {[%emt 0:00:41]} Kd6 {[%emt 0:00:
00]} 43. Ke4+ {[%emt 0:00:53]} Ke6 {[%emt 0:00:25]} 44. Kd4 {[%emt 0:02:08]}
Rh5 {[%emt 0:01:47]} 45. Re2+ {[%emt 0:00:16]} Kd6 {[%emt 0:00:13]} 46. Re4 {
[%emt 0:00:34]} Rd5+ {[%emt 0:05:44]} 47. Ke3 {[%emt 0:02:34]} Rf5 {[%emt 0:00:
00]} 48. Rd4+ {[%emt 0:02:24]} Ke6 {[%emt 0:00:57]} 49. Re4+ {[%emt 0:01:41]}
Kd5 {[%emt 0:00:36]} 50. Rd4+ {[%emt 0:00:47]} Ke6 {[%emt 0:00:30]} 51. Re4+ {
[%emt 0:00:47]} Kd5 {[%emt 0:27:57]} 52. Rd4+ {[%emt 0:01:38]} Ke6 {[%emt 0:00:
00]} 1/2-1/2